fUST/lending_fUST_20250601
["ID","MTS","AMOUNT","RATE_DAILY","PERIOD"]
[363447945,1748725841524,-507.67760231,0.00016712,2]
[363447947,1748725841533,-430.0,0.00016712,2]
[363447949,1748725841543,-430.0,0.00016712,2]
[363447951,1748725841552,-600.37,0.00016712,2]
[363447953,1748725841561,-430.0,0.00016712,2]
[363447955,1748725841571,-430.0,0.00016712,2]
[363447957,1748725841580,-430.0,0.00016712,2]
[363447959,1748725841590,-430.0,0.00016712,2]
[363447961,1748725841599,-430.0,0.00016712,2]
[363447963,1748725841610,-562.21,0.00016712,2]
[363447965,1748725841620,-430.0,0.00016712,2]
[363447967,1748725841630,-534.15,0.00016712,2]
[363447969,1748725841639,-430.0,0.00016712,2]
[363447971,1748725841649,-430.0,0.00016712,2]
[363447973,1748725841657,-500.0,0.00016751,2]
[363447975,1748725841668,-500.0,0.00016751,2]
[363447977,1748725841677,-462.021599,0.00016751,2]
[363447979,1748725841687,-500.0,0.00016765,2]
[363447981,1748725841698,-322.03608124,0.00016765,2]
[363447983,1748725841708,-538.9906306,0.000169,2]
[363447985,1748725841718,-500.0,0.00016984,2]
[363447987,1748725841727,-500.0,0.00016984,2]
[363447989,1748725841737,-500.0,0.00016984,2]
[363447991,1748725841746,-500.0,0.00016985,2]
[363447993,1748725841755,-500.0,0.00016985,2]
[363447995,1748725841765,-500.0,0.00016985,2]
[363447997,1748725841774,-500.0,0.00016985,2]
[363448000,1748725841785,-500.0,0.00016985,2]
[363448002,1748725841794,-450.0,0.00016986,2]
[363448003,1748725841804,-450.0,0.00016986,2]
[363448005,1748725841813,-430.0,0.00016986,2]
[363448008,1748725841822,-200.0,0.00016986,2]
[363448009,1748725841832,-250.0,0.00016986,2]
[363448011,1748725841841,-570.0,0.00016986,2]
[363448013,1748725841851,-430.0,0.00016986,2]
[363448015,1748725841860,-430.0,0.00016986,2]
[363448017,1748725841872,-430.0,0.00016986,2]
[363448019,1748725841881,-430.0,0.00016986,2]
[363448022,1748725841891,-430.0,0.00016986,2]
[363448023,1748725841900,-451.34489508,0.00016986,2]
[363448025,1748725841911,-430.0,0.00016986,2]
[363448028,1748725841928,-430.0,0.00016986,2]
[363448030,1748725841938,-430.0,0.00016986,2]
[363448032,1748725841949,-450.0,0.00016986,2]
[363448034,1748725841959,-430.0,0.00016986,2]
[363448036,1748725841969,-430.0,0.00016986,2]
[363448038,1748725841979,-430.0,0.00016986,2]
[363448040,1748725841989,-195.93259046,0.00016986,2]
[363448042,1748725841998,-432.27280839,0.00016986,2]
[363448044,1748725842007,-352.98,0.00016986,2]
[363448046,1748725842016,-430.0,0.00016986,2]
[363448048,1748725842025,-430.0,0.00016986,2]
[363448050,1748725842035,-440.0,0.00016986,2]
[363448052,1748725842044,-446.74968782,0.00016986,2]
[363448054,1748725842054,-470.0,0.00016986,2]
[363448056,1748725842063,-430.0,0.00016986,2]
[363448057,1748725842072,-440.11,0.00016986,2]
[363448060,1748725842082,-430.0,0.00016986,2]
[363448061,1748725842093,-430.0,0.00016986,2]
[363448063,1748725842102,-1407.36,0.00016986,2]
[363448065,1748725842112,-430.0,0.00016986,2]
[363448067,1748725842124,-742.92,0.00016986,2]
[363448069,1748725842133,-430.0,0.00016986,2]
[363448071,1748725842143,-430.0,0.00016986,2]
[363448074,1748725842155,-167.2,0.00016986,2]
[363448076,1748725842165,-530.36,0.00016986,2]
[363448078,1748725842174,-430.0,0.00016986,2]
[363448079,1748725842184,-562.0,0.00016986,2]
[363448081,1748725842194,-1161.68,0.00016986,2]
[363448083,1748725842203,-430.0,0.00016986,2]
[363448086,1748725842213,-1271.53,0.00016986,2]
[363448088,1748725842223,-430.0,0.00016986,2]
[363448090,1748725842236,-473.2,0.00016986,2]
[363448092,1748725842247,-430.0,0.00016986,2]
[363448094,1748725842256,-626.08,0.00016986,2]
[363448095,1748725842265,-430.0,0.00016986,2]
[363448098,1748725842277,-608.93,0.00016986,2]
[363448100,1748725842287,-351.45830907,0.00016986,2]
[363448102,1748725842297,-1322.22,0.00016986,2]
[363448104,1748725842306,-430.0,0.00016986,2]
[363448105,1748725842317,-430.0,0.00016986,2]
[363448107,1748725842326,-430.0,0.00016986,2]
[363448109,1748725842335,-430.0,0.00016986,2]
[363448111,1748725842344,-430.0,0.00016986,2]
[363448113,1748725842354,-558.51,0.00016986,2]
[363448115,1748725842363,-430.0,0.00016986,2]
[363448117,1748725842373,-430.0,0.00016986,2]
[363448119,1748725842383,-430.0,0.00016986,2]
[363448121,1748725842392,-430.0,0.00016986,2]
[363448123,1748725842401,-430.0,0.00016986,2]
[363448125,1748725842409,-1033.62,0.00016986,2]
[363448127,1748725842419,-430.0,0.00016986,2]
[363448129,1748725842428,-563.31,0.00016986,2]
[363448131,1748725842437,-303.92,0.00016986,2]
[363448134,1748725842447,-322.82,0.00016986,2]
[363448135,1748725842457,-550.44,0.00016986,2]
[363448137,1748725842466,-1043.78,0.00016986,2]
[363448139,1748725842475,-430.0,0.00016986,2]
[363448141,1748725842484,-430.0,0.00016986,2]
[363448143,1748725842494,-864.97,0.00016986,2]
[363448145,1748725842504,-430.0,0.00016986,2]
[363448148,1748725842514,-430.0,0.00016986,2]
[363448149,1748725842523,-868.88,0.00016986,2]
[363448151,1748725842533,-430.0,0.00016986,2]
[363448153,1748725842543,-182.67,0.00016986,2]
[363448156,1748725842553,-600.37,0.00016986,2]
[363448158,1748725842564,-430.0,0.00016986,2]
[363448160,1748725842574,-562.21,0.00016986,2]
[363448162,1748725842584,-534.15,0.00016986,2]
[363448164,1748725842593,-430.0,0.00016986,2]
[363448166,1748725842602,-457.72,0.00016986,2]
[363448168,1748725842612,-538.99063035,0.00017176,2]
[363448170,1748725842621,-500.87138172,0.0001719,2]
[363448172,1748725842631,-500.0,0.00017258,2]
[363448174,1748725842640,-500.0,0.00017258,2]
[363448175,1748725842650,-500.0,0.00017258,2]
[363448176,1748725842659,-459.80679267,0.0001726,2]
[363448177,1748725842668,-430.0,0.0001726,2]
[363448178,1748725842678,-489.54,0.0001726,2]
[363448179,1748725842687,-430.0,0.0001726,2]
[363448180,1748725842696,-1407.36,0.0001726,2]
[363448181,1748725842705,-430.0,0.0001726,2]
[363448182,1748725842714,-742.92,0.0001726,2]
[363448184,1748725842723,-430.0,0.0001726,2]
[363448186,1748725842732,-401.35606081,0.0001726,2]
[363448199,1748725842846,-530.36,0.0001726,2]
[363448201,1748725842857,-430.0,0.0001726,2]
[363448204,1748725842867,-562.0,0.0001726,2]
[363448206,1748725842876,-1161.68,0.0001726,2]
[363448208,1748725842886,-430.0,0.0001726,2]
[363448210,1748725842895,-1271.53,0.0001726,2]
[363448212,1748725842904,-430.0,0.0001726,2]
[363448214,1748725842913,-473.2,0.0001726,2]
[363448216,1748725842923,-430.0,0.0001726,2]
[363448218,1748725842932,-626.08,0.0001726,2]
[363448220,1748725842942,-430.0,0.0001726,2]
[363448222,1748725842951,-608.93,0.0001726,2]
[363448224,1748725842960,-1322.22,0.0001726,2]
[363448226,1748725842969,-430.0,0.0001726,2]
[363448228,1748725842979,-430.0,0.0001726,2]
[363448230,1748725842988,-430.0,0.0001726,2]
[363448232,1748725842998,-579.42,0.0001726,2]
[363448234,1748725843007,-430.0,0.0001726,2]
[363448236,1748725843017,-558.51,0.0001726,2]
[363448238,1748725843027,-430.0,0.0001726,2]
[363448240,1748725843036,-430.0,0.0001726,2]
[363448242,1748725843045,-1033.62,0.0001726,2]
[363448244,1748725843055,-563.31,0.0001726,2]
[363448246,1748725843064,-550.44,0.0001726,2]
[363448248,1748725843073,-1043.78,0.0001726,2]
[363448250,1748725843083,-430.0,0.0001726,2]
[363448252,1748725843092,-430.0,0.0001726,2]
[363448254,1748725843102,-864.97,0.0001726,2]
[363448256,1748725843112,-430.0,0.0001726,2]
[363448258,1748725843122,-430.0,0.0001726,2]
[363448260,1748725843131,-868.88,0.0001726,2]
[363448262,1748725843141,-600.37,0.0001726,2]
[363448265,1748725843150,-430.0,0.0001726,2]
[363448267,1748725843160,-562.21,0.0001726,2]
[363448269,1748725843170,-534.15,0.0001726,2]
[363448271,1748725843180,-364.59337095,0.00017433,2]
[363448273,1748725843190,-538.99063035,0.00017452,2]
[363448275,1748725843200,-430.49135107,0.00017497,2]
[363448277,1748725843210,-500.0,0.00017533,2]
[363448279,1748725843221,-500.0,0.00017533,2]
[363448281,1748725843235,-500.0,0.00017533,2]
[363448282,1748725843247,-430.0,0.00017534,2]
[363448283,1748725843257,-430.0,0.00017534,2]
[363448284,1748725843267,-1407.36,0.00017534,2]
[363448285,1748725843277,-276.38,0.00017534,2]
[363448286,1748725843287,-742.92,0.00017534,2]
[363448287,1748725843296,-430.0,0.00017534,2]
[363448289,1748725843309,-530.36,0.00017534,2]
[363448290,1748725843319,-430.0,0.00017534,2]
[363448291,1748725843329,-562.0,0.00017534,2]
[363448292,1748725843338,-1161.68,0.00017534,2]
[363448293,1748725843348,-1271.53,0.00017534,2]
[363448294,1748725843358,-430.0,0.00017534,2]
[363448295,1748725843367,-430.0,0.00017534,2]
[363448296,1748725843378,-473.2,0.00017534,2]
[363448297,1748725843387,-430.0,0.00017534,2]
[363448298,1748725843398,-626.08,0.00017534,2]
[363448299,1748725843407,-608.93,0.00017534,2]
[363448300,1748725843417,-430.0,0.00017534,2]
[363448301,1748725843427,-1322.22,0.00017534,2]
[363448302,1748725843436,-430.0,0.00017534,2]
[363448303,1748725843446,-430.0,0.00017534,2]
[363448304,1748725843456,-430.0,0.00017534,2]
[363448305,1748725843466,-166.11,0.00017534,2]
[363448306,1748725843477,-558.51,0.00017534,2]
[363448308,1748725843487,-430.0,0.00017534,2]
[363448310,1748725843497,-430.0,0.00017534,2]
[363448312,1748725843507,-1033.62,0.00017534,2]
[363448314,1748725843516,-563.31,0.00017534,2]
[363448316,1748725843526,-550.44,0.00017534,2]
[363448318,1748725843536,-1043.78,0.00017534,2]
[363448320,1748725843546,-430.0,0.00017534,2]
[363448322,1748725843555,-864.97,0.00017534,2]
[363448324,1748725843565,-430.0,0.00017534,2]
[363448326,1748725843575,-430.0,0.00017534,2]
[363448328,1748725843584,-868.88,0.00017534,2]
[363448330,1748725843594,-600.37,0.00017534,2]
[363448332,1748725843603,-430.0,0.00017534,2]
[363448334,1748725843613,-562.21,0.00017534,2]
[363448336,1748725843623,-534.15,0.00017534,2]
[363448338,1748725843632,-538.99063035,0.00017728,2]
[363448340,1748725843642,-328.66164349,0.00017807,2]
[363448379,1748725843992,-430.0,0.00016438,2]
[363448381,1748725844002,-171.33835651,0.00017807,2]
[363448383,1748725844011,-500.0,0.00017807,2]
[363448385,1748725844021,-500.0,0.00017807,2]
[363448387,1748725844030,-243.67,0.00017808,2]
[363448389,1748725844040,-430.0,0.00017808,2]
[363448391,1748725844049,-423.4904807,0.00017808,2]
[363448394,1748725844067,-983.8695193,0.00017808,2]
[363448396,1748725844077,-742.92,0.00017808,2]
[363448398,1748725844087,-530.36,0.00017808,2]
[363448400,1748725844096,-430.0,0.00017808,2]
[363448402,1748725844106,-562.0,0.00017808,2]
[363448404,1748725844115,-1161.68,0.00017808,2]
[363448406,1748725844125,-1271.53,0.00017808,2]
[363448408,1748725844134,-430.0,0.00017808,2]
[363448410,1748725844144,-430.0,0.00017808,2]
[363448412,1748725844153,-473.2,0.00017808,2]
[363448414,1748725844162,-430.0,0.00017808,2]
[363448416,1748725844172,-626.08,0.00017808,2]
[363448418,1748725844182,-608.93,0.00017808,2]
[363448420,1748725844191,-430.0,0.00017808,2]
[363448422,1748725844201,-1322.22,0.00017808,2]
[363448424,1748725844210,-430.0,0.00017808,2]
[363448426,1748725844219,-430.0,0.00017808,2]
[363448428,1748725844231,-430.0,0.00017808,2]
[363448430,1748725844241,-558.51,0.00017808,2]
[363448432,1748725844250,-430.0,0.00017808,2]
[363448434,1748725844259,-430.0,0.00017808,2]
[363448436,1748725844270,-1033.62,0.00017808,2]
[363448438,1748725844279,-563.31,0.00017808,2]
[363448440,1748725844288,-550.44,0.00017808,2]
[363448442,1748725844298,-1043.78,0.00017808,2]
[363448444,1748725844307,-430.0,0.00017808,2]
[363448446,1748725844318,-864.97,0.00017808,2]
[363448448,1748725844329,-430.0,0.00017808,2]
[363448450,1748725844339,-430.0,0.00017808,2]
[363448452,1748725844349,-868.88,0.00017808,2]
[363448454,1748725844359,-600.37,0.00017808,2]
[363448456,1748725844368,-430.0,0.00017808,2]
[363448458,1748725844377,-562.21,0.00017808,2]
[363448460,1748725844388,-534.15,0.00017808,2]
[363448462,1748725844398,-3781.5,0.0001797,2]
[363448464,1748725844407,-208.43,0.00018,2]
[363448466,1748725844416,-538.99063035,0.00018003,2]
[363448468,1748725844426,-500.0,0.00018081,2]
[363448470,1748725844435,-500.0,0.00018081,2]
[363448472,1748725844444,-500.0,0.00018081,2]
[363448474,1748725844455,-430.0,0.00018082,2]
[363448476,1748725844466,-1407.36,0.00018082,2]
[363448478,1748725844476,-742.92,0.00018082,2]
[363448480,1748725844486,-530.36,0.00018082,2]
[363448482,1748725844496,-430.0,0.00018082,2]
[363448484,1748725844505,-562.0,0.00018082,2]
[363448486,1748725844515,-1161.68,0.00018082,2]
[363448488,1748725844524,-1271.53,0.00018082,2]
[363448490,1748725844534,-430.0,0.00018082,2]
[363448492,1748725844545,-430.0,0.00018082,2]
[363448494,1748725844554,-473.2,0.00018082,2]
[363448496,1748725844564,-626.08,0.00018082,2]
[363448498,1748725844573,-430.0,0.00018082,2]
[363448501,1748725844583,-608.93,0.00018082,2]
[363448502,1748725844594,-430.0,0.00018082,2]
[363448505,1748725844604,-1322.22,0.00018082,2]
[363448507,1748725844614,-430.0,0.00018082,2]
[363448509,1748725844623,-430.0,0.00018082,2]
[363448511,1748725844634,-430.0,0.00018082,2]
[363448513,1748725844644,-558.51,0.00018082,2]
[363448515,1748725844654,-430.0,0.00018082,2]
[363448517,1748725844663,-240.07,0.00018082,2]
[363448519,1748725844673,-1033.62,0.00018082,2]
[363448521,1748725844683,-563.31,0.00018082,2]
[363448523,1748725844693,-550.44,0.00018082,2]
[363448525,1748725844702,-1043.78,0.00018082,2]
[363448527,1748725844711,-430.0,0.00018082,2]
[363448529,1748725844721,-864.97,0.00018082,2]
[363448531,1748725844730,-430.0,0.00018082,2]
[363448533,1748725844740,-430.0,0.00018082,2]
[363448535,1748725844749,-868.88,0.00018082,2]
[363448537,1748725844759,-600.37,0.00018082,2]
[363448539,1748725844768,-240.34,0.00018082,2]
[363448541,1748725844777,-562.21,0.00018082,2]
[363448543,1748725844786,-534.15,0.00018082,2]
[363448545,1748725844795,-160.0,0.00018143,2]
[363448547,1748725844804,-160.0,0.00018148,2]
[363448549,1748725844814,-160.0,0.00018148,2]
[363448551,1748725844823,-842.5625,0.00018148,2]
[363448553,1748725844833,-229.3428821,0.00018148,2]
[363448555,1748725844842,-212.77096907,0.00018148,2]
[363448557,1748725844851,-423.4608169,0.00018148,2]
[363448559,1748725844860,-538.99063035,0.00018279,2]
[363448561,1748725844870,-187.92,0.00018356,2]
[363448562,1748725844879,-1407.36,0.00018356,2]
[363448565,1748725844889,-742.92,0.00018356,2]
[363448567,1748725844899,-530.36,0.00018356,2]
[363448569,1748725844908,-430.0,0.00018356,2]
[363448571,1748725844918,-562.0,0.00018356,2]
[363448573,1748725844928,-1161.68,0.00018356,2]
[363448575,1748725844938,-1271.53,0.00018356,2]
[363448577,1748725844948,-430.0,0.00018356,2]
[363448579,1748725844957,-430.0,0.00018356,2]
[363448593,1748725845076,-473.2,0.00018356,2]
[363448595,1748725845087,-626.08,0.00018356,2]
[363448597,1748725845096,-430.0,0.00018356,2]
[363448599,1748725845105,-608.93,0.00018356,2]
[363448600,1748725845115,-430.0,0.00018356,2]
[363448602,1748725845124,-1322.22,0.00018356,2]
[363448604,1748725845135,-493.29,0.00018356,2]
[363448606,1748725845145,-430.0,0.00018356,2]
[363448608,1748725845154,-430.0,0.00018356,2]
[363448610,1748725845164,-558.51,0.00018356,2]
[363448612,1748725845174,-430.0,0.00018356,2]
[363448614,1748725845184,-1033.62,0.00018356,2]
[363448616,1748725845194,-563.31,0.00018356,2]
[363448618,1748725845204,-550.44,0.00018356,2]
[363448620,1748725845214,-1043.78,0.00018356,2]
[363448622,1748725845224,-430.0,0.00018356,2]
[363448625,1748725845238,-864.97,0.00018356,2]
[363448627,1748725845248,-497.55,0.00018356,2]
[363448629,1748725845257,-430.0,0.00018356,2]
[363448630,1748725845267,-868.88,0.00018356,2]
[363448633,1748725845276,-600.37,0.00018356,2]
[363448634,1748725845287,-562.21,0.00018356,2]
[363448637,1748725845296,-534.15,0.00018356,2]
[363448638,1748725845307,-364.59337095,0.00018528,2]
[363448640,1748725845316,-538.99063035,0.00018555,2]
[363448642,1748725845326,-500.0,0.00018628,2]
[363448644,1748725845336,-459.26913252,0.00018628,2]
[363448646,1748725845345,-1407.36,0.0001863,2]
[363448648,1748725845355,-742.92,0.0001863,2]
[363448650,1748725845365,-530.36,0.0001863,2]
[363448652,1748725845374,-430.0,0.0001863,2]
[363448654,1748725845384,-562.0,0.0001863,2]
[363448656,1748725845395,-1161.68,0.0001863,2]
[363448659,1748725845404,-1271.53,0.0001863,2]
[363448661,1748725845414,-430.0,0.0001863,2]
[363448663,1748725845424,-430.0,0.0001863,2]
[363448665,1748725845434,-473.2,0.0001863,2]
[363448667,1748725845443,-626.08,0.0001863,2]
[363448669,1748725845453,-430.0,0.0001863,2]
[363448671,1748725845462,-608.93,0.0001863,2]
[363448673,1748725845471,-430.0,0.0001863,2]
[363448675,1748725845481,-1322.22,0.0001863,2]
[363448677,1748725845491,-430.0,0.0001863,2]
[363448680,1748725845500,-430.0,0.0001863,2]
[363448682,1748725845510,-558.51,0.0001863,2]
[363448685,1748725845519,-430.0,0.0001863,2]
[363448687,1748725845529,-1033.62,0.0001863,2]
[363448689,1748725845538,-563.31,0.0001863,2]
[363448691,1748725845547,-550.44,0.0001863,2]
[363448693,1748725845557,-1043.78,0.0001863,2]
[363448696,1748725845566,-430.0,0.0001863,2]
[363448698,1748725845575,-864.97,0.0001863,2]
[363448700,1748725845585,-430.0,0.0001863,2]
[363448702,1748725845595,-868.88,0.0001863,2]
[363448704,1748725845604,-600.37,0.0001863,2]
[363448706,1748725845614,-562.21,0.0001863,2]
[363448708,1748725845623,-534.15,0.0001863,2]
[363448710,1748725845634,-7562.99,0.00018826,2]
[363448712,1748725845643,-538.99063035,0.00018831,2]
[363448714,1748725845653,-829.03776928,0.000189,2]
[363448716,1748725845662,-500.0,0.00018902,2]
[363448718,1748725845671,-1407.36,0.00018904,2]
[363448720,1748725845681,-742.92,0.00018904,2]
[363448722,1748725845690,-530.36,0.00018904,2]
[363448724,1748725845699,-348.98,0.00018904,2]
[363448726,1748725845708,-562.0,0.00018904,2]
[363448728,1748725845718,-1161.68,0.00018904,2]
[363448730,1748725845727,-1271.53,0.00018904,2]
[363448732,1748725845737,-430.0,0.00018904,2]
[363448734,1748725845746,-430.0,0.00018904,2]
[363448736,1748725845755,-473.2,0.00018904,2]
[363448738,1748725845764,-626.08,0.00018904,2]
[363448739,1748725845773,-430.0,0.00018904,2]
[363448741,1748725845783,-608.93,0.00018904,2]
[363448744,1748725845793,-430.0,0.00018904,2]
[363448746,1748725845802,-1322.22,0.00018904,2]
[363448748,1748725845813,-430.0,0.00018904,2]
[363448750,1748725845822,-430.0,0.00018904,2]
[363448752,1748725845832,-558.51,0.00018904,2]
[363448754,1748725845842,-430.0,0.00018904,2]
[363448756,1748725845851,-1033.62,0.00018904,2]
[363448758,1748725845861,-563.31,0.00018904,2]
[363448760,1748725845871,-550.44,0.00018904,2]
[363448762,1748725845880,-1043.78,0.00018904,2]
[363448764,1748725845890,-430.0,0.00018904,2]
[363448766,1748725845899,-864.97,0.00018904,2]
[363448768,1748725845909,-430.0,0.00018904,2]
[363448770,1748725845918,-868.88,0.00018904,2]
[363448772,1748725845927,-600.37,0.00018904,2]
[363448774,1748725845936,-562.21,0.00018904,2]
[363448776,1748725845946,-534.15,0.00018904,2]
[363448778,1748725845955,-538.99063035,0.00019107,2]
[363448780,1748725845965,-500.0,0.00019177,2]
[363448782,1748725845975,-430.0,0.00019178,2]
[363448784,1748725845984,-430.0,0.00019178,2]
[363448786,1748725845994,-500.0,0.00019178,2]
[363448788,1748725846003,-466.93866642,0.00019178,2]
[363448790,1748725846012,-500.0,0.00019178,2]
[363448792,1748725846022,-500.0,0.00019178,2]
[363448794,1748725846031,-500.0,0.00019178,2]
[363448796,1748725846041,-500.0,0.00019178,2]
[363448798,1748725846051,-185.20568962,0.00019178,2]
[363448800,1748725846060,-1407.36,0.00019178,2]
[363448802,1748725846069,-742.92,0.00019178,2]
[363448805,1748725846079,-530.36,0.00019178,2]
[363448806,1748725846088,-562.0,0.00019178,2]
[363448809,1748725846098,-1161.68,0.00019178,2]
[363448811,1748725846107,-1271.53,0.00019178,2]
[363448813,1748725846117,-460.51,0.00019178,2]
[363448815,1748725846127,-600.0,0.00019178,2]
[363448817,1748725846137,-382.89239783,0.00019178,2]
[363448819,1748725846146,-300.0,0.00019178,2]
[363448821,1748725846156,-473.2,0.00019178,2]
[363448823,1748725846165,-626.08,0.00019178,2]
[363448825,1748725846176,-430.0,0.00019178,2]
[363448827,1748725846186,-608.93,0.00019178,2]
[363448829,1748725846195,-398.83618381,0.00019178,2]
[363448831,1748725846205,-1322.22,0.00019178,2]
[363448833,1748725846215,-430.0,0.00019178,2]
[363448835,1748725846224,-430.0,0.00019178,2]
[363448837,1748725846238,-250.0,0.00019178,2]
[363448839,1748725846247,-558.51,0.00019178,2]
[363448841,1748725846257,-503.12478374,0.00019178,2]
[363448843,1748725846267,-1033.62,0.00019178,2]
[363448845,1748725846277,-563.31,0.00019178,2]
[363448848,1748725846286,-550.44,0.00019178,2]
[363448849,1748725846298,-1043.78,0.00019178,2]
[363448852,1748725846309,-430.0,0.00019178,2]
[363448854,1748725846319,-864.97,0.00019178,2]
[363448856,1748725846329,-430.0,0.00019178,2]
[363448858,1748725846338,-868.88,0.00019178,2]
[363448860,1748725846347,-600.37,0.00019178,2]
[363448862,1748725846356,-562.21,0.00019178,2]
[363448864,1748725846366,-534.15,0.00019178,2]
[363448866,1748725846375,-264.715847,0.00019178,2]
[363448868,1748725846385,-168.282417,0.00019178,2]
[363448870,1748725846394,-30191.14888411,0.00019329,2]
[363448872,1748725846404,-538.99063035,0.00019383,2]
[363448873,1748725846413,-1407.36,0.00019452,2]
[363448876,1748725846423,-742.92,0.00019452,2]
[363448878,1748725846433,-530.36,0.00019452,2]
[363448880,1748725846443,-562.0,0.00019452,2]
[363448882,1748725846452,-1161.68,0.00019452,2]
[363448884,1748725846461,-1271.53,0.00019452,2]
[363448886,1748725846471,-473.2,0.00019452,2]
[363448888,1748725846481,-626.08,0.00019452,2]
[363448890,1748725846491,-430.0,0.00019452,2]
[363448892,1748725846500,-608.93,0.00019452,2]
[363448894,1748725846510,-1322.22,0.00019452,2]
[363448896,1748725846520,-430.0,0.00019452,2]
[363448898,1748725846530,-430.0,0.00019452,2]
[363448900,1748725846540,-558.51,0.00019452,2]
[363448902,1748725846550,-1033.62,0.00019452,2]
[363448904,1748725846560,-563.31,0.00019452,2]
[363448906,1748725846570,-550.44,0.00019452,2]
[363448908,1748725846579,-1043.78,0.00019452,2]
[363448909,1748725846588,-430.0,0.00019452,2]
[363448911,1748725846597,-864.97,0.00019452,2]
[363448913,1748725846607,-430.0,0.00019452,2]
[363448915,1748725846621,-868.88,0.00019452,2]
[363448917,1748725846632,-600.37,0.00019452,2]
[363448919,1748725846641,-562.21,0.00019452,2]
[363448921,1748725846651,-534.15,0.00019452,2]
[363448923,1748725846660,-500.0,0.000195,2]
[363448925,1748725846670,-600.0,0.000195,2]
[363448927,1748725846680,-500.94988306,0.000195,2]
[363448929,1748725846690,-364.59337095,0.00019623,2]
[363448931,1748725846700,-538.99063035,0.00019659,2]
[363448933,1748725846710,-11344.49,0.00019682,2]
[363448935,1748725846720,-500.0,0.00019714,2]
[363448937,1748725846731,-1407.36,0.00019726,2]
[363448939,1748725846741,-742.92,0.00019726,2]
[363448941,1748725846750,-530.36,0.00019726,2]
[363448943,1748725846760,-562.0,0.00019726,2]
[363448945,1748725846770,-1161.68,0.00019726,2]
[363448947,1748725846779,-1271.53,0.00019726,2]
[363448949,1748725846789,-473.2,0.00019726,2]
[363448951,1748725846799,-626.08,0.00019726,2]
[363448953,1748725846810,-430.0,0.00019726,2]
[363448955,1748725846820,-608.93,0.00019726,2]
[363448957,1748725846829,-1322.22,0.00019726,2]
[363448959,1748725846839,-430.0,0.00019726,2]
[363448961,1748725846849,-430.0,0.00019726,2]
[363448963,1748725846859,-558.51,0.00019726,2]
[363448965,1748725846868,-1033.62,0.00019726,2]
[363448967,1748725846878,-563.31,0.00019726,2]
[363448969,1748725846888,-550.44,0.00019726,2]
[363448971,1748725846897,-1043.78,0.00019726,2]
[363448973,1748725846907,-283.31,0.00019726,2]
[363448975,1748725846916,-864.97,0.00019726,2]
[363448977,1748725846927,-430.0,0.00019726,2]
[363448979,1748725846936,-868.88,0.00019726,2]
[363448981,1748725846946,-600.37,0.00019726,2]